bitfinex/quotes_SOLUSD_20220211
["timestamp","ask_amount","ask_price","bid_price","bid_amount"]
[1644545864423,23.94139712,104.93,104.86,31.6887]
[1644545864623,23.94139712,104.93,104.86,25.4387]
[1644545864828,23.94139712,104.93,104.86,14.3087]
[1644545865223,23.897,104.93,104.86,14.3087]
[1644545865826,4.766,104.92,104.86,14.3087]
[1644545866028,43.01669712,104.93,104.86,14.3087]
[1644545872433,38.25069712,104.93,104.86,14.3087]
[1644545873432,4.766,104.92,104.86,14.3087]
[1644545875332,43.01669712,104.93,104.86,14.3087]
[1644545876432,58.563223,104.93,104.85,14.3111]
[1644545876631,61.23536981,104.93,104.84,48.78864973]
[1644545876836,56.46936981,104.93,104.84,48.78864973]
[1644545877735,56.46936981,104.93,104.84,63.10124973]
[1644545878158,53.797223,104.93,104.84,63.10124973]
[1644545878336,56.46936981,104.93,104.84,63.10124973]
[1644545879437,71.01656981,104.93,104.84,63.10124973]
[1644545881738,56.46936981,104.93,104.84,63.10124973]
[1644545882940,56.46936981,104.93,104.84,63.35124973]
[1644545883141,53.797223,104.93,104.84,63.35124973]
[1644545883440,53.797223,104.93,104.84,63.10124973]
[1644545883642,56.46936981,104.93,104.84,63.10124973]
[1644545884042,14.3121,104.9,104.84,63.10124973]
[1644545885144,14.3121,104.9,104.84,14.3126]
[1644545885767,14.3121,104.9,104.84,20.3126]
[1644545887870,14.3121,104.9,104.84,20.5626]
[1644545891572,14.3121,104.9,104.84,20.3126]
[1644545891773,14.3121,104.9,104.84,14.3126]
[1644545892175,14.3121,104.9,104.81,4.767]
[1644545892376,4.768,104.89,104.81,4.767]
[1644545892575,14.3173,104.87,104.81,4.767]
[1644545892976,4.769,104.86,104.81,4.767]
[1644545893976,14.3201,104.85,104.78,0.024]
[1644545894176,4.769,104.84,104.77,39.26470946]
[1644545894575,4.769,104.85,104.77,39.26470946]
[1644545894779,4.769,104.85,104.78,0.024]
[1644545894978,4.769,104.85,104.77,39.26470946]
[1644545895777,14.3218,104.83,104.77,53.58650946]
[1644545898183,14.3207,104.84,104.77,53.58650946]
[1644545898386,14.3207,104.84,104.78,0.024]
[1644545898586,14.3207,104.84,104.78,14.3204]
[1644545902288,23.1754,104.86,104.78,19.3394]
[1644545902486,23.1754,104.86,104.78,19.3634]
[1644545902886,70.3888,104.88,104.78,25.3634]
[1644545903088,22.6584,104.88,104.79,0.024]
[1644545903287,14.3164,104.87,104.81,14.3163]
[1644545903488,14.3164,104.87,104.81,53.7729598]
[1644545903893,22.6584,104.88,104.81,53.7729598]
[1644545904089,22.6584,104.88,104.81,14.3163]
[1644545904290,36.9736,104.88,104.81,14.3163]
[1644545904489,4.768,104.87,104.8,14.3191]
[1644545904697,4.768,104.87,104.79,0.024]
[1644545904895,4.768,104.87,104.77,0.024]
[1644545905090,15.898,104.87,104.77,35.28914825]
[1644545905290,15.898,104.87,104.78,0.024]
[1644545905490,40.8606,104.87,104.78,0.024]
[1644545905693,14.3194,104.86,104.79,14.3204]
[1644545905891,4.769,104.85,104.79,14.3204]
[1644545906091,4.769,104.86,104.79,14.3204]
[1644545906492,4.769,104.86,104.78,0.024]
[1644545906693,15.899,104.86,104.77,0.024]
[1644545906892,14.3204,104.84,104.75,0.024]
[1644545907094,4.771,104.83,104.75,0.024]
[1644545907294,31.44752588,104.83,104.75,0.024]
[1644545908196,14.3277,104.81,104.75,0.024]
[1644545908395,14.3277,104.81,104.73,43.16950438]
[1644545909694,14.3277,104.81,104.74,14.3269]
[1644545909894,14.3277,104.81,104.74,14.3509]
[1644545912199,4.772,104.8,104.74,14.3509]
[1644545912402,14.3277,104.81,104.74,14.3509]
[1644545912804,14.3277,104.81,104.74,14.6009]
[1644545913002,14.3277,104.81,104.74,14.3509]
[1644545913401,14.3277,104.81,104.74,14.6009]
[1644545914005,19.0954,104.82,104.74,14.6009]
[1644545914206,14.3234,104.82,104.74,19.3719]
[1644545914910,14.3234,104.82,104.74,19.1219]
[1644545915514,14.3234,104.82,104.74,14.3509]
[1644545919008,4.771,104.81,104.74,14.3509]
[1644545919208,19.0964,104.81,104.74,14.3509]
[1644545919431,14.3254,104.81,104.74,14.3509]
[1644545920909,4.772,104.82,104.74,14.3509]
[1644545920910,14.3241,104.82,104.74,14.3509]
[1644545921715,14.3241,104.82,104.74,0.024]
[1644545922115,4.771,104.81,104.74,0.024]
[1644545922314,59.1669,104.83,104.74,0.024]
[1644545922315,14.3293,104.79,104.74,0.024]
[1644545922514,14.3293,104.79,104.73,14.3287]
[1644545922715,14.3293,104.79,104.72,22.8968]
[1644545923714,14.3293,104.79,104.72,37.2266]
[1644545924314,14.3293,104.79,104.72,14.3538]
[1644545924517,14.3293,104.79,104.72,0.024]
[1644545924717,22.0223,104.79,104.72,0.024]
[1644545925316,4.773,104.78,104.72,0.024]
[1644545925518,14.3337,104.77,104.72,0.024]
[1644545925718,14.3337,104.77,104.7,0.024]
[1644545925920,14.3337,104.77,104.69,14.3578]
[1644545926117,4.774,104.76,104.69,14.3578]
[1644545926519,14.3321,104.76,104.69,14.3578]
[1644545926935,14.3321,104.76,104.69,49.49675211]
[1644545931945,14.3321,104.76,104.69,14.3578]
[1644545932145,14.3321,104.76,104.69,0.024]
[1644545932746,14.3321,104.76,104.68,38.9217]
[1644545932948,14.3357,104.73,104.68,38.9217]
[1644545933146,14.3357,104.73,104.69,0.024]
[1644545933349,14.3357,104.73,104.68,14.3353]
[1644545935151,14.3357,104.73,104.67,14.3604]
[1644545935351,14.3357,104.73,104.67,14.3364]
[1644545936052,14.3357,104.73,104.67,61.4319024]
[1644545937454,14.3357,104.73,104.67,14.3364]
[1644545939157,14.3357,104.73,104.66,0.024]
[1644545939354,14.3357,104.73,104.64,0.024]
[1644545939355,4.775,104.72,104.64,0.024]
[1644545939555,14.3421,104.7,104.63,0.024]
[1644545940556,14.3428,104.68,104.63,0.024]
[1644545940756,14.3428,104.68,104.62,69.99980367]
[1644545940957,19.1198,104.68,104.62,24.9958]
[1644545941155,14.3428,104.68,104.6,0.024]
[1644545941558,19.1198,104.68,104.6,0.024]
[1644545941958,19.1198,104.68,104.6,37.24544257]
[1644545942859,19.1198,104.68,104.6,51.58994257]
[1644545943459,19.1198,104.68,104.6,0.024]
[1644545943661,38.9568,104.68,104.6,0.024]
[1644545944061,22.5762,104.67,104.58,0.024]
[1644545944264,14.3487,104.65,104.58,0.024]
[1644545944461,4.779,104.64,104.58,0.024]
[1644545944662,4.779,104.64,104.57,64.21892639]
[1644545944862,4.779,104.66,104.57,64.21892639]
[1644545945063,4.779,104.66,104.58,0.024]
[1644545945664,22.5762,104.67,104.58,1.75137785]
[1644545945866,22.5762,104.67,104.59,0.024]
[1644545946163,31.3847,104.68,104.6,1.72737785]
[1644545946164,8.707,104.68,104.6,1.72737785]
[1644545946366,8.707,104.68,104.61,4.777]
[1644545946565,8.707,104.68,104.61,19.1433]
[1644545946866,8.707,104.68,104.61,14.3663]
[1644545947766,23.0498,104.68,104.61,14.3663]
[1644545948065,4.777,104.67,104.61,0.024]
[1644545948264,4.777,104.67,104.6,14.3447]
[1644545949569,8.707,104.68,104.6,14.3447]
[1644545949764,14.3454,104.67,104.6,14.3687]
[1644545949965,19.1224,104.67,104.6,14.3687]
[1644545950971,14.3454,104.67,104.6,14.3687]
[1644545951366,14.3454,104.67,104.6,0.024]
[1644545951967,19.1224,104.67,104.6,0.024]
[1644545952766,14.3454,104.67,104.6,0.024]
[1644545952966,70.1582,104.68,104.6,1.75160237]
[1644545953268,8.707,104.68,104.6,2.00160237]
[1644545954670,8.707,104.68,104.6,1.75160237]
[1644545954872,14.3418,104.69,104.6,16.09620237]
[1644545955072,4.777,104.68,104.61,0.024]
[1644545956770,4.777,104.68,104.62,14.342]
[1644545956971,14.3418,104.69,104.62,14.342]
[1644545957473,14.3418,104.69,104.62,51.83091588]
[1644545958170,4.777,104.68,104.62,14.342]
[1644545958376,30.1666,104.68,104.61,0.024]
[1644545958572,53.0202,104.68,104.61,0.024]
[1644545958974,11.13,104.67,104.61,0.024]
[1644545959174,11.13,104.67,104.6,39.75330936]
[1644545959376,14.3474,104.66,104.6,39.75330936]
[1644545959778,14.3474,104.66,104.59,0.024]
[1644545960081,4.777,104.65,104.58,14.3705]
[1644545960276,4.777,104.66,104.59,0.024]
[1644545960477,4.777,104.66,104.58,14.3705]
[1644545960699,4.777,104.66,104.58,59.78559177]
[1644545960902,14.3472,104.65,104.58,0.024]
[1644545961099,4.779,104.64,104.58,0.024]
[1644545961399,4.779,104.64,104.57,0.024]
[1644545961599,4.779,104.64,104.54,0.024]
[1644545961600,15.909,104.64,104.54,0.024]
[1644545961801,47.97552154,104.63,104.52,0.024]
[1644545961998,4.781,104.62,104.52,14.3793]
[1644545962198,4.781,104.62,104.55,39.60162427]
[1644545962398,93.5904,104.63,104.55,39.62562427]
[1644545962800,45.7443,104.63,104.55,41.35322664]
[1644545963000,45.7443,104.63,104.55,41.57922664]
[1644545963798,45.7443,104.63,104.55,55.68012664]
[1644545963799,14.3512,104.62,104.55,55.68012664]
[1644545964001,4.78,104.65,104.55,151.51012664]
[1644545964205,4.78,104.68,104.56,11.154]
[1644545964402,53.23856334,104.7,104.57,0.024]
[1644545964601,4.777,104.68,104.57,1.75160237]
[1644545964802,4.777,104.69,104.58,0.024]
[1644545965000,4.777,104.69,104.59,34.54257513]
[1644545965304,14.3446,104.67,104.6,14.3675]
[1644545965502,14.3446,104.67,104.61,0.024]
[1644545965700,4.777,104.66,104.6,14.3435]
[1644545966402,14.3431,104.68,104.6,14.3435]
[1644545966601,14.3431,104.68,104.6,16.09510237]
[1644545967600,14.3431,104.68,104.6,16.34510237]
[1644545967803,14.3431,104.68,104.6,16.09510237]
[1644545968815,4.777,104.67,104.6,16.09510237]
[1644545970118,14.3431,104.68,104.6,16.09510237]
[1644545970320,14.3431,104.68,104.6,16.34510237]
[1644545970923,14.3431,104.68,104.6,16.09510237]
[1644545971820,14.3431,104.68,104.6,14.3675]
[1644545972021,14.3431,104.68,104.6,0.024]
[1644545972221,14.3479,104.65,104.6,0.024]
[1644545972520,4.777,104.64,104.58,0.024]
[1644545972718,4.777,104.64,104.56,24.2556]
[1644545972719,4.779,104.66,104.56,24.2556]
[1644545972922,47.8363,104.65,104.57,0.024]
[1644545973120,7.01022154,104.64,104.55,43.84968068]
[1644545973320,7.01022154,104.64,104.56,0.024]
[1644545973522,21.35942154,104.64,104.56,0.024]
[1644545973723,32.93942154,104.64,104.55,0.024]
[1644545973924,2.09324001,104.61,104.53,0.024]
[1644545974126,52.644,104.6,104.51,0.024]
[1644545974326,52.0,104.59,104.48,13.92579532]
[1644545974526,5.08950663,104.58,104.46,1.34977453]
[1644545974723,14.3613,104.55,104.45,6.13177453]
[1644545974923,4.784,104.54,104.44,3.0773769]
[1644545975124,4.784,104.54,104.44,1.72760237]
[1644545975324,15.915,104.56,104.44,1.72760237]
[1644545975525,2.23122154,104.54,104.44,1.72760237]
[1644545975727,11.13,104.56,104.45,44.49334717]
[1644545975923,4.784,104.55,104.45,44.49334717]
[1644545976123,14.3639,104.54,104.45,44.49334717]
[1644545976323,4.784,104.57,104.45,51.25494954]
[1644545976524,6.11086334,104.59,104.45,68.38494954]
[1644545976726,4.784,104.59,104.46,15.47174828]
[1644545976924,6.11086334,104.59,104.46,15.47174828]
[1644545977126,13.36122154,104.58,104.45,75.43864954]
[1644545977325,4.784,104.57,104.46,16.08810237]
[1644545977725,4.784,104.57,104.46,22.33810237]
[1644545978128,15.914,104.6,104.47,4.784]
[1644545978333,15.914,104.6,104.47,11.034]
[1644545978524,15.914,104.6,104.48,1.72760237]
[1644545978724,14.3597,104.59,104.49,34.71524547]
[1644545978924,4.782,104.58,104.49,34.71524547]
[1644545979126,4.782,104.59,104.47,4.784]
[1644545979325,4.783,104.57,104.47,5.034]
[1644545979525,11.13,104.57,104.47,5.034]
[1644545979725,4.783,104.56,104.47,5.034]
[1644545980125,4.783,104.56,104.48,45.79535643]
[1644545982129,4.783,104.56,104.46,22.5342]
[1644545982428,30.2778,104.56,104.42,33.8974]
[1644545982927,30.2778,104.56,104.42,40.1474]
[1644545983135,30.2778,104.56,104.43,37.81128752]
[1644545983331,30.2778,104.56,104.43,44.06128752]
[1644545984129,30.2778,104.56,104.43,45.78899571]
[1644545984529,30.2778,104.56,104.44,4.784]
[1644545984731,11.13,104.56,104.44,10.784]
[1644545985030,51.7987,104.57,104.45,1.72770819]
[1644545985229,51.7987,104.57,104.47,45.00896228]
[1644545985429,47.0147,104.57,104.48,4.783]
[1644545985632,47.0147,104.57,104.48,14.952]
[1644545985835,4.783,104.58,104.49,1.72770819]
[1644545986032,4.783,104.6,104.5,4.783]
[1644545986232,4.783,104.6,104.51,39.5119493]
[1644545986432,4.783,104.6,104.51,41.23965749]
[1644545986635,4.783,104.6,104.52,1.72770819]
[1644545986833,4.783,104.6,104.52,1.97770819]
[1644545987435,4.783,104.6,104.52,1.72770819]
[1644545987640,4.783,104.6,104.53,1.72770819]
[1644545987835,25.4831,104.64,104.53,10.46270819]
[1644545987836,4.781,104.63,104.53,10.46270819]
[1644545988235,4.781,104.63,104.54,1.72770819]
[1644545988440,4.781,104.65,104.55,42.66591078]
[1644545988838,4.781,104.65,104.55,42.91591078]
[1644545989337,4.781,104.65,104.56,0.024]
[1644545989540,67.8531,104.66,104.56,0.024]
[1644545989738,48.7239,104.66,104.56,0.024]
[1644545991138,48.7239,104.66,104.56,6.53070819]
[1644545991340,4.779,104.67,104.57,0.024]
[1644545991740,4.779,104.67,104.58,1.72770819]
[1644545991941,4.779,104.67,104.59,45.89721508]
[1644545992342,4.779,104.67,104.59,45.87321508]
[1644545992539,7.01022154,104.67,104.57,0.024]
[1644545993445,7.01022154,104.67,104.58,34.90244151]
[1644545993446,4.779,104.67,104.58,34.90244151]
[1644545993645,4.779,104.67,104.59,0.024]
[1644545994042,4.779,104.67,104.59,11.497]
[1644545994342,4.779,104.67,104.59,27.81540819]
[1644545994560,2.23122154,104.7,104.59,27.81540819]
[1644545994762,2.23122154,104.7,104.6,0.024]
[1644545995164,2.23122154,104.7,104.6,1.75170819]
[1644545995364,116.677,104.71,104.61,0.024]
[1644545995862,111.9,104.71,104.61,0.024]
[1644545996064,4.777,104.7,104.61,0.024]
[1644545996765,4.777,104.7,104.61,14.3618]
[1644545996968,7.00822154,104.7,104.61,0.024]
[1644545997567,8.33508488,104.7,104.59,0.024]
[1644545998871,22.67848488,104.7,104.59,0.024]
[1644545999070,20.44726334,104.7,104.59,0.024]
[1644546000572,4.777,104.7,104.59,11.154]
[1644546000774,4.777,104.7,104.6,0.024]
[1644546001073,14.3398,104.72,104.62,46.64565589]
[1644546001275,4.777,104.71,104.62,46.64565589]
[1644546002073,19.1182,104.71,104.62,46.64565589]
[1644546002275,20.44506334,104.71,104.62,46.64565589]
[1644546002474,26.27532616,104.7,104.61,0.024]
[1644546002678,1.63015351,104.68,104.59,0.024]
[1644546002878,15.907,104.67,104.58,0.024]
[1644546003075,17.23386334,104.67,104.54,0.024]
[1644546003276,14.3489,104.66,104.54,14.3727]
[1644546003477,15.91,104.65,104.54,49.23676687]
[1644546003675,11.13,104.65,104.55,0.024]
[1644546004376,14.3502,104.64,104.55,0.024]
[1644546004576,15.91,104.63,104.55,0.024]
[1644546004977,40.76020057,104.63,104.55,0.024]
[1644546005477,14.3556,104.61,104.55,0.024]
[1644546005676,15.911,104.6,104.52,0.024]
[1644546006876,14.3599,104.58,104.52,0.024]
[1644546007078,15.912,104.57,104.49,0.024]
[1644546007278,15.912,104.57,104.47,0.024]
[1644546007879,15.912,104.57,104.47,38.40993271]
[1644546008180,15.912,104.57,104.48,0.024]
[1644546008378,11.13,104.57,104.48,4.807]
[1644546008581,11.13,104.57,104.49,0.024]
[1644546009881,25.4891,104.57,104.49,0.024]
[1644546010983,4.783,104.56,104.49,0.024]
[1644546011182,19.1442,104.56,104.49,0.024]
[1644546011582,11.13,104.59,104.49,0.024]
[1644546011784,24.1876,104.6,104.49,0.024]
[1644546012084,38.5434,104.6,104.51,46.52110607]
[1644546012281,38.5434,104.6,104.52,0.024]
[1644546014389,49.6734,104.6,104.52,0.024]
[1644546014588,4.781,104.59,104.52,0.024]
[1644546014789,19.1384,104.59,104.52,0.024]
[1644546016590,11.13,104.58,104.52,0.024]
[1644546016790,14.3637,104.55,104.5,0.024]
[1644546016993,4.783,104.54,104.48,0.024]
[1644546017194,11.13,104.55,104.47,6.0]
[1644546017392,4.784,104.53,104.48,0.024]
[1644546017594,4.784,104.54,104.46,0.024]
[1644546018796,14.3645,104.53,104.46,0.024]
[1644546019295,4.784,104.54,104.46,0.024]
[1644546019505,15.914,104.55,104.46,0.024]
[1644546020818,30.2767,104.55,104.46,14.3857]
[1644546021019,30.2767,104.55,104.47,0.024]
[1644546022319,11.13,104.55,104.47,16.11215783]
[1644546022521,14.36,104.57,104.47,16.11215783]
[1644546022720,14.36,104.57,104.48,0.024]
[1644546023720,14.36,104.57,104.48,14.383]
[1644546023921,14.36,104.57,104.49,45.62429202]
[1644546024322,14.36,104.57,104.49,45.87429202]
[1644546025722,14.36,104.57,104.49,60.23199202]
[1644546026426,4.783,104.59,104.5,1.72775783]
[1644546026725,28.9706,104.6,104.5,7.75175783]
[1644546026925,24.1876,104.6,104.51,0.024]
[1644546027124,24.1876,104.6,104.51,1.75175783]
[1644546027328,24.1876,104.6,104.53,47.81168211]
[1644546027524,4.781,104.59,104.53,47.83568211]
[1644546027724,4.781,104.59,104.53,47.81168211]
[1644546028727,14.3574,104.58,104.53,47.81168211]
[1644546028928,4.782,104.57,104.53,47.81168211]
[1644546030128,14.3574,104.58,104.53,47.81168211]
[1644546032131,1.32686334,104.59,104.53,47.81168211]
[1644546032329,25.51446334,104.6,104.53,47.81168211]
[1644546033232,24.1876,104.6,104.53,47.81168211]
[1644546033733,38.5417,104.6,104.53,47.81168211]
[1644546033930,38.5417,104.6,104.53,47.83568211]
[1644546034431,39.86856334,104.6,104.53,47.83568211]
[1644546034933,46.88078488,104.6,104.53,0.024]
[1644546035136,12.45686334,104.59,104.51,0.024]
[1644546035333,14.36,104.56,104.5,0.024]
[1644546035534,14.36,104.56,104.49,4.781]
[1644546035835,2.23122154,104.55,104.49,4.781]
[1644546036034,4.783,104.54,104.49,4.781]
[1644546036233,1.32686334,104.53,104.49,4.781]
[1644546036434,14.3671,104.52,104.49,4.781]
[1644546036634,3.03219997,104.51,104.49,4.781]
[1644546036840,3.03219997,104.51,104.45,0.024]
[1644546036841,6.06439994,104.51,104.45,0.024]
[1644546037042,6.06439994,104.51,104.44,47.7017703]
[1644546037947,20.43109994,104.51,104.44,47.7017703]
[1644546039946,20.43109994,104.51,104.43,0.024]
[1644546040250,28.28409994,104.51,104.43,0.024]
[1644546040845,14.3697,104.49,104.42,0.024]
[1644546041046,14.3697,104.49,104.42,45.83878531]
[1644546041246,14.3697,104.49,104.42,45.86278531]
[1644546041845,14.3697,104.49,104.42,51.86278531]
[1644546042245,14.3718,104.47,104.42,51.86278531]
[1644546042445,14.3718,104.47,104.4,0.024]
[1644546042645,14.3718,104.47,104.41,6.0]
[1644546042849,14.3718,104.47,104.4,0.024]
[1644546043047,14.3718,104.47,104.39,30.7496]
[1644546043445,14.3718,104.47,104.39,78.09262362]
[1644546043848,14.3718,104.47,104.39,0.024]
[1644546044048,25.5018,104.47,104.39,0.024]
[1644546044246,4.787,104.46,104.39,0.024]
[1644546044447,14.377,104.44,104.38,0.50283385]
[1644546044846,19.165,104.44,104.38,0.50283385]
[1644546045449,14.377,104.44,104.38,0.50283385]
[1644546047376,4.788,104.43,104.38,0.47883385]
[1644546047676,14.3805,104.42,104.38,0.47883385]
[1644546048079,25.5105,104.42,104.38,0.47883385]
[1644546048676,47.9363,104.44,104.38,0.47883385]
[1644546048677,25.508,104.44,104.38,0.47883385]
[1644546048878,40.3962,104.46,104.38,0.47883385]
[1644546049082,35.6082,104.46,104.38,0.47883385]
[1644546049880,25.5052,104.46,104.39,44.98276433]
[1644546050080,11.13,104.46,104.39,45.00676433]
[1644546051081,15.918,104.46,104.39,45.00676433]
[1644546052084,11.13,104.46,104.39,45.00676433]
[1644546052886,14.373,104.47,104.39,45.00676433]
[1644546053083,19.16,104.47,104.39,45.00676433]
[1644546053287,19.16,104.47,104.39,51.00676433]
[1644546054387,14.373,104.47,104.39,51.00676433]
[1644546055888,14.373,104.47,104.39,45.00676433]
[1644546056487,19.16,104.47,104.39,0.024]
[1644546056988,30.29,104.47,104.39,0.024]
[1644546058490,32.52122154,104.47,104.39,0.024]
[1644546059090,45.7368,104.46,104.39,0.024]
[1644546059290,14.3836,104.44,104.38,0.47883385]
[1644546059490,15.918,104.43,104.39,0.024]
[1644546059691,11.13,104.42,104.38,0.47883385]
[1644546060892,25.5133,104.42,104.38,0.47883385]
[1644546061692,30.3023,104.42,104.38,0.47883385]
[1644546063305,30.3023,104.42,104.39,1.78620919]
[1644546063494,6.06439994,104.41,104.39,1.78620919]
[1644546063697,14.3822,104.4,104.39,1.78620919]
[1644546064096,17.19439994,104.41,104.39,1.78620919]
[1644546065719,31.57509994,104.41,104.39,1.78620919]
[1644546067604,31.57509994,104.41,104.29,15.73407453]
[1644546067605,95.58,104.39,104.29,15.73407453]
[1644546067799,0.30721313,104.37,104.26,1.34977453]
[1644546067999,11.13,104.36,104.22,52.67217453]
[1644546068198,11.13,104.36,104.22,51.3224]
[1644546068199,15.923,104.36,104.22,51.3224]
[1644546068399,52.37846919,104.36,104.22,46.5304]
[1644546068598,11.13,104.36,104.24,14.39]
[1644546068809,14.3917,104.34,104.26,43.447765]
[1644546071001,11.13,104.35,104.26,43.447765]
[1644546072203,11.13,104.35,104.26,57.835265]
[1644546072403,11.13,104.35,104.26,63.835265]
[1644546072603,25.5166,104.37,104.26,63.835265]
[1644546072805,25.5166,104.37,104.28,44.00164148]
[1644546073225,11.13,104.37,104.28,44.25164148]
[1644546073426,11.13,104.37,104.23,11.13]
[1644546073427,52.0,104.36,104.23,11.13]
[1644546073628,11.13,104.35,104.2,50.47587453]
[1644546073828,4.795,104.34,104.21,4.793]
[1644546074030,11.13,104.33,104.21,4.793]
[1644546074428,11.13,104.33,104.22,36.83224713]
[1644546074828,25.5235,104.33,104.22,60.01464713]
[1644546075028,25.5235,104.33,104.22,60.26464713]
[1644546075227,25.5235,104.33,104.22,66.01464713]
[1644546075628,31.5235,104.33,104.22,65.51464713]
[1644546076730,31.5235,104.33,104.22,80.15634713]
[1644546077332,31.5235,104.33,104.24,47.3302273]
[1644546077833,31.5235,104.33,104.24,47.5802273]
[1644546078935,33.24183748,104.33,104.24,47.3302273]
[1644546079141,14.3965,104.31,104.24,47.3302273]
[1644546079339,25.5265,104.31,104.24,47.3302273]
[1644546081943,25.5265,104.31,104.2,29.1201]
[1644546082244,14.3989,104.29,104.2,30.5771]
[1644546083045,14.3989,104.29,104.21,48.46027975]
[1644546083243,25.5262,104.31,104.21,54.71027975]
[1644546083444,11.13,104.31,104.21,54.73427975]
[1644546083644,17.13,104.31,104.22,0.024]
[1644546085143,6.0,104.31,104.22,0.024]
[1644546085344,46.3051,104.32,104.22,0.024]
[1644546085550,52.3051,104.32,104.22,0.024]
[1644546085746,66.6999,104.32,104.22,0.024]
[1644546085945,60.6999,104.32,104.22,0.024]
[1644546086146,77.8299,104.32,104.22,0.024]
[1644546086744,19.19,104.31,104.22,0.024]
[1644546086947,63.4351,104.32,104.22,4.819]
[1644546087144,63.4351,104.32,104.23,0.024]
[1644546087744,63.4351,104.32,104.23,36.29428705]
[1644546087945,63.4351,104.32,104.24,0.024]
[1644546088145,68.2281,104.32,104.24,0.024]
[1644546088746,82.6219,104.32,104.24,0.024]
[1644546089147,77.8289,104.32,104.24,0.024]
[1644546089450,31.5238,104.32,104.24,0.024]
[1644546090847,14.3982,104.29,104.24,0.024]
[1644546091049,4.795,104.28,104.22,4.817]
[1644546091247,11.13,104.28,104.22,4.793]
[1644546091450,4.796,104.27,104.22,4.793]
[1644546091646,11.13,104.26,104.22,4.793]
[1644546092049,11.13,104.26,104.21,37.76541377]
[1644546092246,14.4017,104.26,104.21,37.76541377]
[1644546092453,14.4017,104.26,104.18,0.024]
[1644546092652,95.58,104.27,104.17,0.024]
[1644546092653,15.927,104.25,104.17,0.024]
[1644546092847,18.15822154,104.25,104.15,0.024]
[1644546093047,11.13,104.25,104.13,4.823]
[1644546093247,59.1525,104.25,104.14,0.024]
[1644546093451,83.7761,104.25,104.16,43.51355499]
[1644546093848,50.1578,104.25,104.17,0.024]
[1644546095149,11.13,104.25,104.17,0.024]
[1644546095349,25.5309,104.27,104.17,0.024]
[1644546096549,30.3279,104.27,104.17,0.024]
[1644546096748,54.7108,104.27,104.17,0.024]
[1644546098749,60.7108,104.27,104.17,0.024]
[1644546101255,62.94202154,104.27,104.17,0.024]
[1644546102055,60.7108,104.27,104.17,0.024]
[1644546102255,80.06567081,104.27,104.17,0.024]
[1644546102457,95.80986135,104.27,104.17,0.024]
[1644546102755,107.37837524,104.27,104.17,0.024]
[1644546104358,106.0515119,104.27,104.17,0.024]
[1644546107385,93.57863981,104.27,104.17,0.024]
[1644546108888,77.83444927,104.27,104.17,0.024]
[1644546110287,80.06567081,104.27,104.17,0.024]
[1644546111192,77.83444927,104.27,104.17,0.024]
[1644546111390,60.7108,104.27,104.17,0.024]
[1644546111687,95.80986135,104.27,104.17,0.024]
[1644546113288,95.80986135,104.27,104.17,0.004]
[1644546113488,0.31566254,104.26,104.13,24.8055]
[1644546113689,14.4135,104.22,104.1,1.34977453]